[Event "NJSK 2018 Jeugd B"]
[Site "Assen, Netherlands"]
[Date "2018.05.01"]
[Round "3.8"]
[White "Cchung, Chi Yun"]
[Black "Ypma, Jord"]
[Result "1-0"]
[TimeControl "40/90m+30m+30sec/move"]
[WhiteElo "1783"]
[BlackElo "1737"]

1. e4 {[%clk 01:30:57]} {[%emt 00:00:02]} c5 {[%clk 01:30:49]} {[%emt
00:00:12]} 2. Nf3 {[%clk 01:31:23]} {[%emt 00:00:04]} g6 {[%clk 01:30:49]}
{[%emt 00:00:31]} 3. d4 {[%clk 01:31:48]} {[%emt 00:00:05]} cxd4 {[%clk
01:31:00]} {[%emt 00:00:18]} 4. Nxd4 {[%clk 01:32:08]} {[%emt 00:00:10]} Nc6
{[%clk 01:31:16]} {[%emt 00:00:15]} 5. c4 {[%clk 01:32:33]} {[%emt 00:00:05]}
Bg7 {[%clk 01:31:24]} {[%emt 00:00:21]} 6. Be3 {[%clk 01:32:46]} {[%emt
00:00:17]} Nf6 {[%clk 01:31:32]} {[%emt 00:00:22]} 7. Nc3 {[%clk 01:31:54]}
{[%emt 00:01:22]} Ng4 {[%clk 01:28:12]} {[%emt 00:03:51]} 8. Qxg4 {[%clk
01:32:17]} {[%emt 00:00:06]} Nxd4 {[%clk 01:28:35]} {[%emt 00:00:07]} 9. Qd1
{[%clk 01:32:43]} {[%emt 00:00:03]} Ne6 {[%clk 01:28:17]} {[%emt 00:00:49]} 10.
Rc1 {[%clk 01:32:46]} {[%emt 00:00:27]} d6 {[%clk 01:26:57]} {[%emt 00:01:51]}
11. Bd3 {[%clk 01:32:33]} {[%emt 00:00:42]} b6 {[%clk 01:22:53]} {[%emt
00:04:35]} 12. O-O {[%clk 01:32:32]} {[%emt 00:00:30]} Bb7 {[%clk 01:21:14]}
{[%emt 00:02:10]} 13. f4 {[%clk 01:23:50]} {[%emt 00:09:11]} O-O {[%clk
01:16:56]} {[%emt 00:04:48]} 14. f5 {[%clk 01:02:50]} {[%emt 00:21:30]} Nc5
{[%clk 01:16:25]} {[%emt 00:01:01]} 15. Bb1 {[%clk 00:59:26]} {[%emt 00:03:54]}
Nd7 {[%clk 01:14:30]} {[%emt 00:02:35]} 16. b3 {[%clk 00:55:20]} {[%emt
00:04:26]} Ne5 {[%clk 01:13:36]} {[%emt 00:01:23]} 17. Qe1 {[%clk 00:49:13]}
{[%emt 00:06:37]} Rc8 {[%clk 01:01:26]} {[%emt 00:12:41]} 18. Qh4 {[%clk
00:44:43]} {[%emt 00:04:57]} Qd7 {[%clk 00:56:43]} {[%emt 00:05:16]} 19. Nd5
{[%clk 00:43:04]} {[%emt 00:02:09]} Bxd5 {[%clk 00:52:02]} {[%emt 00:05:11]} 20.
exd5 {[%clk 00:43:14]} {[%emt 00:00:19]} e6 {[%clk 00:48:51]} {[%emt 00:03:41]}
21. f6 {[%clk 00:34:29]} {[%emt 00:09:15]} Bh8 {[%clk 00:47:49]} {[%emt
00:01:32]} 22. Bh6 {[%clk 00:34:05]} {[%emt 00:00:55]} Rfe8 {[%clk 00:47:42]}
{[%emt 00:00:37]} 23. Rc3 {[%clk 00:33:41]} {[%emt 00:00:53]} exd5 {[%clk
00:46:42]} {[%emt 00:01:31]} 24. Rg3 {[%clk 00:16:44]} {[%emt 00:17:26]} dxc4
{[%clk 00:44:14]} {[%emt 00:02:58]} 25. Bf5 {[%clk 00:12:04]} {[%emt 00:05:10]}
Qc7 {[%clk 00:43:50]} {[%emt 00:00:55]} 26. Rh3 {[%clk 00:04:16]} {[%emt
00:08:17]} Nd3 {[%clk 00:30:04]} {[%emt 00:14:16]} 27. b4 {[%clk 00:00:33]}
{[%emt 00:04:14]} Re2 {[%clk 00:24:52]} {[%emt 00:05:42]} 28. Bg7 {[%clk
00:00:40]} {[%emt 00:00:23]} h5 {[%clk 00:24:41]} {[%emt 00:00:41]} 29. Bxh8
{[%clk 00:00:53]} {[%emt 00:00:17]} Qc6 {[%clk 00:22:43]} {[%emt 00:02:28]} 30.
Qg5 {[%clk 00:00:39]} {[%emt 00:00:44]} Ne1 {[%clk 00:21:47]} {[%emt 00:01:26]}
31. Rg3 {[%clk 00:00:33]} {[%emt 00:00:35]} h4 {[%clk 00:21:20]} {[%emt
00:00:58]} 32. Bxg6 {[%clk 00:00:34]} {[%emt 00:00:29]} Kf8 {[%clk 00:15:46]}
{[%emt 00:06:03]} 33. Bf5 {[%emt 00:03:01]} 1-0

[Event "NJSK 2018 Jeugd B"]
[Site "Assen, Netherlands"]
[Date "2018.05.02"]
[Round "4.1"]
[White "De Boer, Eelke"]
[Black "Bruil, Rembrandt"]
[Result "1-0"]
[TimeControl "40/90m+30m+30sec/move"]
[WhiteElo "2318"]
[BlackElo "1998"]

1. e4 {[%clk 01:30:58]} c5 {[%clk 01:30:53]} {[%emt 00:00:08]} 2. Nf3 {[%clk
01:31:15]} {[%emt 00:00:13]} d6 {[%clk 01:31:08]} {[%emt 00:00:15]} 3. d4
{[%clk 01:31:34]} {[%emt 00:00:11]} cxd4 {[%clk 01:31:34]} {[%emt 00:00:04]} 4.
Nxd4 {[%clk 01:31:56]} {[%emt 00:00:07]} Nf6 {[%clk 01:31:55]} {[%emt
00:00:10]} 5. Nc3 {[%clk 01:32:19]} {[%emt 00:00:07]} a6 {[%clk 01:32:21]}
{[%emt 00:00:04]} 6. Bg5 {[%clk 01:25:12]} {[%emt 00:07:37]} Nbd7 {[%clk
01:32:39]} {[%emt 00:00:12]} 7. Qe2 {[%clk 01:23:01]} {[%emt 00:02:41]} h6
{[%clk 01:32:31]} {[%emt 00:00:38]} 8. Bh4 {[%clk 01:23:26]} {[%emt 00:00:04]}
g6 {[%clk 01:32:02]} {[%emt 00:00:59]} 9. f4 {[%clk 01:23:51]} {[%emt
00:00:05]} e5 {[%clk 01:32:12]} {[%emt 00:00:21]} 10. fxe5 {[%clk 01:24:14]}
{[%emt 00:00:06]} dxe5 {[%clk 01:32:39]} {[%emt 00:00:04]} 11. O-O-O {[%clk
01:24:32]} {[%emt 00:00:11]} Qc7 {[%clk 01:33:07]} {[%emt 00:00:03]} 12. Nb3
{[%clk 01:24:54]} {[%emt 00:00:08]} b5 {[%clk 01:32:39]} {[%emt 00:00:58]} 13.
Qf3 {[%clk 01:25:18]} {[%emt 00:00:06]} Bg7 {[%clk 01:32:45]} {[%emt 00:00:24]}
14. g4 {[%clk 01:25:42]} {[%emt 00:00:06]} Bb7 {[%clk 01:32:40]} {[%emt
00:00:36]} 15. a3 {[%clk 01:26:05]} {[%emt 00:00:06]} Rc8 {[%clk 01:32:49]}
{[%emt 00:00:21]} 16. Bd3 {[%clk 01:26:19]} {[%emt 00:00:16]} O-O {[%clk
01:28:06]} {[%emt 00:05:13]} 17. Kb1 {[%clk 01:24:51]} {[%emt 00:01:58]} Qb6
{[%clk 01:28:00]} {[%emt 00:00:37]} 18. Be1 {[%clk 01:25:01]} {[%emt 00:00:18]}
Qe6 {[%clk 01:27:49]} {[%emt 00:00:42]} 19. h3 {[%clk 01:24:12]} {[%emt
00:01:19]} Rfd8 {[%clk 01:25:32]} {[%emt 00:02:46]} 20. Ne2 {[%clk 01:16:32]}
{[%emt 00:08:10]} Nb6 {[%clk 01:04:30]} {[%emt 00:21:33]} 21. Ng3 {[%clk
01:10:34]} {[%emt 00:06:27]} Nc4 {[%clk 01:02:19]} {[%emt 00:02:43]} 22. Bb4
{[%clk 01:09:10]} {[%emt 00:01:53]} Qb6 {[%clk 00:51:24]} {[%emt 00:11:25]} 23.
Rhf1 {[%clk 00:44:15]} {[%emt 00:25:24]} Rd7 {[%clk 00:46:18]} {[%emt
00:05:36]} 24. Bxc4 {[%clk 00:43:27]} {[%emt 00:01:19]} Rxd1+ {[%clk 00:46:41]}
{[%emt 00:00:07]} 25. Rxd1 {[%clk 00:43:49]} {[%emt 00:00:08]} Rxc4 {[%clk
00:30:57]} {[%emt 00:16:14]} 26. Na5 {[%clk 00:39:00]} {[%emt 00:05:18]} Rd4
{[%clk 00:22:50]} {[%emt 00:08:38]} 27. Rxd4 {[%clk 00:37:52]} {[%emt
00:01:37]} exd4 {[%clk 00:23:09]} {[%emt 00:00:12]} 28. Nxb7 {[%clk 00:38:08]}
{[%emt 00:00:13]} Qxb7 {[%clk 00:23:34]} {[%emt 00:00:04]} 29. Qd3 {[%clk
00:33:21]} {[%emt 00:05:18]} Nd7 {[%clk 00:19:20]} {[%emt 00:04:45]} 30. Ne2
{[%clk 00:32:50]} {[%emt 00:01:00]} Qb6 {[%clk 00:18:13]} {[%emt 00:01:38]} 31.
Qd2 {[%clk 00:20:57]} {[%emt 00:12:22]} Qf6 {[%clk 00:11:45]} {[%emt 00:06:59]}
32. Qf4 {[%clk 00:12:47]} {[%emt 00:08:39]} Qe6 {[%clk 00:08:44]} {[%emt
00:03:31]} 33. c3 {[%clk 00:05:34]} {[%emt 00:07:43]} d3 {[%clk 00:04:12]}
{[%emt 00:05:03]} 34. Nc1 {[%clk 00:05:58]} {[%emt 00:00:05]} Ne5 {[%clk
00:02:58]} {[%emt 00:01:44]} 35. Bc5 {[%clk 00:02:59]} {[%emt 00:03:29]} Qc4
{[%clk 00:01:48]} {[%emt 00:01:41]} 36. Bd4 {[%clk 00:02:21]} {[%emt 00:01:07]}
d2 {[%clk 00:01:25]} {[%emt 00:00:53]} 37. Qxd2 {[%clk 00:02:38]} {[%emt
00:00:14]} Nf3 {[%clk 00:01:47]} {[%emt 00:00:08]} 38. Qd3 {[%clk 00:01:51]}
{[%emt 00:01:16]} Nxd4 {[%clk 00:01:20]} {[%emt 00:00:57]} 39. Qxc4 {[%clk
00:01:42]} {[%emt 00:00:39]} bxc4 {[%clk 00:01:45]} {[%emt 00:00:05]} 40. cxd4
{[%clk 00:02:05]} {[%emt 00:00:07]} Bxd4 {[%clk 00:02:12]} {[%emt 00:00:03]} 41.
Ne2 {[%clk 00:29:49]} {[%emt 00:02:45]} Be5 {[%clk 00:29:19]} {[%emt 00:03:24]}
42. Kc2 {[%clk 00:26:19]} {[%emt 00:03:59]} Kg7 {[%clk 00:19:18]} {[%emt
00:10:32]} 43. Ng1 {[%clk 00:19:59]} {[%emt 00:06:49]} Kf6 {[%clk 00:13:57]}
{[%emt 00:05:52]} 44. Nf3 {[%clk 00:20:22]} {[%emt 00:00:07]} Ke6 {[%clk
00:14:14]} {[%emt 00:00:13]} 45. Nd2 {[%clk 00:19:29]} {[%emt 00:01:23]} f5
{[%clk 00:11:46]} {[%emt 00:02:59]} 46. exf5+ {[%clk 00:16:23]} {[%emt
00:03:35]} gxf5 {[%clk 00:12:02]} {[%emt 00:00:14]} 47. Nxc4 {[%clk 00:15:23]}
{[%emt 00:01:30]} Bf4 {[%clk 00:08:17]} {[%emt 00:04:14]} 48. Kd3 {[%clk
00:14:05]} {[%emt 00:01:49]} fxg4 {[%clk 00:07:27]} {[%emt 00:01:21]} 49. hxg4
{[%clk 00:14:33]} {[%emt 00:00:01]} Kf6 {[%clk 00:06:34]} {[%emt 00:01:22]} 50.
Ke4 {[%clk 00:12:47]} {[%emt 00:02:16]} Kg5 {[%clk 00:06:14]} {[%emt 00:00:51]}
51. Kf3 {[%clk 00:13:12]} {[%emt 00:00:05]} Bc7 {[%clk 00:06:15]} {[%emt
00:00:29]} 52. b4 {[%clk 00:12:07]} {[%emt 00:01:36]} Bd8 {[%clk 00:05:32]}
{[%emt 00:01:12]} 53. Nd6 {[%clk 00:10:07]} {[%emt 00:02:30]} Be7 {[%clk
00:02:01]} {[%emt 00:04:01]} 54. Ne4+ {[%clk 00:07:36]} {[%emt 00:03:02]} Kh4
{[%clk 00:01:22]} {[%emt 00:01:08]} 55. Kf4 {[%clk 00:07:12]} {[%emt 00:00:54]}
Bf8 {[%clk 00:01:05]} {[%emt 00:00:47]} 56. Kf5 {[%clk 00:06:54]} {[%emt
00:00:48]} Be7 {[%clk 00:01:13]} {[%emt 00:00:22]} 57. Ke6 {[%clk 00:04:34]}
{[%emt 00:02:50]} Bd8 {[%clk 00:01:23]} {[%emt 00:00:20]} 58. Kf5 {[%clk
00:03:13]} {[%emt 00:01:51]} Bb6 {[%clk 00:01:21]} {[%emt 00:00:33]} 59. a4
{[%clk 00:01:57]} {[%emt 00:01:46]} Be3 {[%clk 00:00:42]} {[%emt 00:01:08]} 60.
Nf6 {[%clk 00:01:10]} {[%emt 00:01:16]} Bd2 {[%clk 00:00:32]} {[%emt 00:00:40]}
61. b5 {[%clk 00:01:07]} {[%emt 00:00:33]} axb5 {[%clk 00:00:52]} {[%emt
00:00:11]} 62. axb5 {[%clk 00:01:36]} {[%emt 00:00:02]} Be3 {[%clk 00:01:03]}
{[%emt 00:00:19]} 63. Nd5 {[%clk 00:01:59]} {[%emt 00:00:06]} Ba7 {[%clk
00:01:11]} {[%emt 00:00:22]} 64. b6 {[%clk 00:01:38]} {[%emt 00:00:51]} Bb8
{[%clk 00:00:47]} {[%emt 00:00:54]} 65. b7 {[%clk 00:00:56]} {[%emt 00:01:12]}
1-0

[Event "NJSK 2018 Jeugd B"]
[Site "Assen, Netherlands"]
[Date "2018.05.02"]
[Round "4.2"]
[White "Van Randtwijk, Mick"]
[Black "Tang, Charlie"]
[Result "0-1"]
[TimeControl "40/90m+30m+30sec/move"]
[WhiteElo "1992"]
[BlackElo "2127"]

1. e4 {[%clk 01:30:57]} {[%emt 00:00:02]} c5 {[%clk 01:30:39]} {[%emt
00:00:22]} 2. Nf3 {[%clk 01:31:19]} {[%emt 00:00:07]} d6 {[%clk 01:30:53]}
{[%emt 00:00:17]} 3. d4 {[%clk 01:31:37]} {[%emt 00:00:12]} cxd4 {[%clk
01:31:14]} {[%emt 00:00:09]} 4. Nxd4 {[%clk 01:31:59]} {[%emt 00:00:08]} Nf6
{[%clk 01:31:32]} {[%emt 00:00:12]} 5. Nc3 {[%clk 01:32:22]} {[%emt 00:00:07]}
g6 {[%clk 01:31:47]} {[%emt 00:00:15]} 6. Be3 {[%clk 01:32:35]} {[%emt
00:00:16]} Bg7 {[%clk 01:31:56]} {[%emt 00:00:22]} 7. f3 {[%clk 01:32:47]}
{[%emt 00:00:17]} O-O {[%clk 01:32:15]} {[%emt 00:00:11]} 8. Qd2 {[%clk
01:33:10]} {[%emt 00:00:07]} Nc6 {[%clk 01:32:35]} {[%emt 00:00:12]} 9. O-O-O
{[%clk 01:33:14]} {[%emt 00:00:25]} d5 {[%clk 01:32:33]} {[%emt 00:00:31]} 10.
Qe1 {[%clk 01:33:34]} {[%emt 00:00:10]} e5 {[%clk 01:32:10]} {[%emt 00:00:54]}
11. Nxc6 {[%clk 01:33:40]} {[%emt 00:00:24]} bxc6 {[%clk 01:32:33]} {[%emt
00:00:06]} 12. exd5 {[%clk 01:34:02]} {[%emt 00:00:08]} Nxd5 {[%clk 01:32:33]}
{[%emt 00:00:31]} 13. Bc4 {[%clk 01:34:17]} {[%emt 00:00:15]} Be6 {[%clk
01:32:44]} {[%emt 00:00:20]} 14. Kb1 {[%clk 01:34:24]} {[%emt 00:00:21]} Rb8
{[%clk 01:23:52]} {[%emt 00:09:23]} 15. Ne4 {[%clk 01:34:30]} {[%emt 00:00:24]}
Qc7 {[%clk 01:23:32]} {[%emt 00:00:51]} 16. Bc5 {[%clk 01:34:38]} {[%emt
00:00:21]} Rfd8 {[%clk 01:23:45]} {[%emt 00:00:16]} 17. g4 {[%clk 01:34:58]}
{[%emt 00:00:10]} h6 {[%clk 01:03:45]} {[%emt 00:20:30]} 18. Bb3 {[%clk
01:35:13]} {[%emt 00:00:15]} f5 {[%clk 00:57:09]} {[%emt 00:07:07]} 19. gxf5
{[%clk 01:26:56]} {[%emt 00:08:47]} gxf5 {[%clk 00:57:33]} {[%emt 00:00:05]} 20.
Ng3 {[%clk 01:21:49]} {[%emt 00:05:37]} Qf7 {[%clk 00:57:39]} {[%emt 00:00:25]}
21. Rg1 {[%clk 01:21:27]} {[%emt 00:00:52]} Kh7 {[%clk 00:53:56]} {[%emt
00:04:13]} 22. Qf1 {[%clk 01:02:44]} {[%emt 00:19:12]} Rd7 {[%clk 00:45:34]}
{[%emt 00:08:53]} 23. c4 {[%clk 00:52:53]} {[%emt 00:10:21]} Nf4 {[%clk
00:41:02]} {[%emt 00:05:02]} 24. Bd6 {[%clk 00:48:22]} {[%emt 00:05:00]} Rbd8
{[%clk 00:35:26]} {[%emt 00:06:06]} 25. c5 {[%clk 00:48:02]} {[%emt 00:00:51]}
Rb7 {[%clk 00:34:54]} {[%emt 00:01:02]} 26. Bxe6 {[%clk 00:44:25]} {[%emt
00:04:07]} Qxe6 {[%clk 00:35:17]} {[%emt 00:00:06]} 27. Qa6 {[%clk 00:40:14]}
{[%emt 00:04:41]} Rdd7 {[%clk 00:32:07]} {[%emt 00:03:41]} 28. Rd2 {[%clk
00:36:41]} {[%emt 00:04:02]} Qf6 {[%clk 00:31:44]} {[%emt 00:00:54]} 29. Qa3
{[%clk 00:33:43]} {[%emt 00:03:28]} Qf7 {[%clk 00:26:30]} {[%emt 00:05:44]} 30.
Kc1 {[%clk 00:26:15]} {[%emt 00:07:57]} Rb5 {[%clk 00:24:11]} {[%emt 00:02:49]}
31. b3 {[%clk 00:23:43]} {[%emt 00:03:02]} Qf6 {[%clk 00:22:40]} {[%emt
00:02:02]} 32. Qb2 {[%clk 00:22:47]} {[%emt 00:01:25]} Qe6 {[%clk 00:22:31]}
{[%emt 00:00:39]} 33. Qc2 {[%clk 00:22:41]} {[%emt 00:00:37]} Rf7 {[%clk
00:22:20]} {[%emt 00:00:40]} 34. Re1 {[%clk 00:22:23]} {[%emt 00:00:48]} Rbb7
{[%clk 00:22:12]} {[%emt 00:00:39]} 35. Rdd1 {[%clk 00:17:55]} {[%emt
00:04:57]} Rbd7 {[%clk 00:20:10]} {[%emt 00:02:32]} 36. Qd2 {[%clk 00:17:31]}
{[%emt 00:00:54]} Nd5 {[%clk 00:19:29]} {[%emt 00:01:11]} 37. Nh5 {[%clk
00:17:32]} {[%emt 00:00:29]} Bh8 {[%clk 00:19:11]} {[%emt 00:00:48]} 38. Rg1
{[%clk 00:17:28]} {[%emt 00:00:35]} Rd8 {[%clk 00:16:34]} {[%emt 00:03:06]} 39.
Rde1 {[%clk 00:16:34]} {[%emt 00:01:24]} f4 {[%clk 00:12:11]} {[%emt 00:04:54]}
40. Qc2 {[%clk 00:13:31]} {[%emt 00:03:33]} Qf5 {[%clk 00:12:27]} {[%emt
00:00:13]} 41. Re4 {[%clk 00:05:40]} {[%emt 00:08:21]} Rg8 {[%clk 00:08:06]}
{[%emt 00:04:51]} 42. Rge1 {[%clk 00:02:20]} {[%emt 00:03:51]} Ne3 {[%clk
00:07:23]} {[%emt 00:01:13]} 43. Qd3 {[%clk 00:25:53]} {[%emt 00:06:57]} Rg6
{[%clk 00:26:22]} {[%emt 00:11:31]} 44. Ng3 {[%clk 00:23:42]} {[%emt 00:02:40]}
fxg3 {[%clk 00:26:46]} {[%emt 00:00:06]} 45. Qxe3 {[%clk 00:24:06]} {[%emt
00:00:06]} g2 {[%clk 00:27:03]} {[%emt 00:00:13]} 46. f4 {[%clk 00:20:22]}
{[%emt 00:04:15]} g1=Q {[%clk 00:27:09]} {[%emt 00:00:23]} 47. Rxg1 {[%clk
00:19:51]} {[%emt 00:01:01]} Rxg1+ {[%clk 00:27:31]} {[%emt 00:00:08]} 0-1

[Event "NJSK 2018 Jeugd B"]
[Site "Assen, Netherlands"]
[Date "2018.05.02"]
[Round "4.3"]
[White "Kouwenhoven, Derk"]
[Black "Wedda, Dries"]
[Result "1-0"]
[TimeControl "40/90m+30m+30sec/move"]
[WhiteElo "2091"]
[BlackElo "2096"]

1. e4 {[%clk 01:30:57]} {[%emt 00:00:02]} c5 {[%clk 01:30:59]} {[%emt
00:00:02]} 2. Nf3 {[%clk 01:31:17]} {[%emt 00:00:10]} d6 {[%clk 01:31:24]}
{[%emt 00:00:06]} 3. d4 {[%clk 01:31:42]} {[%emt 00:00:04]} cxd4 {[%clk
01:31:50]} {[%emt 00:00:04]} 4. Nxd4 {[%clk 01:32:06]} {[%emt 00:00:06]} Nf6
{[%clk 01:32:16]} {[%emt 00:00:03]} 5. Nc3 {[%clk 01:32:30]} {[%emt 00:00:07]}
a6 {[%clk 01:32:44]} {[%emt 00:00:02]} 6. Bg5 {[%clk 01:32:47]} {[%emt
00:00:12]} Nbd7 {[%clk 01:33:11]} {[%emt 00:00:03]} 7. Qe2 {[%clk 01:32:57]}
{[%emt 00:00:20]} h6 {[%clk 01:33:31]} {[%emt 00:00:12]} 8. Bh4 {[%clk
01:33:10]} {[%emt 00:00:16]} g6 {[%clk 01:33:49]} {[%emt 00:00:13]} 9. f4
{[%clk 01:33:00]} {[%emt 00:00:39]} e5 {[%clk 01:31:43]} {[%emt 00:02:36]} 10.
Nf3 {[%clk 01:33:20]} {[%emt 00:00:11]} Qc7 {[%clk 01:22:49]} {[%emt 00:09:23]}
11. O-O-O {[%clk 01:33:33]} {[%emt 00:00:17]} Be7 {[%clk 01:17:16]} {[%emt
00:06:02]} 12. g3 {[%clk 01:33:32]} {[%emt 00:00:32]} O-O {[%clk 01:04:00]}
{[%emt 00:13:46]} 13. Bh3 {[%clk 01:29:58]} {[%emt 00:04:04]} Nb6 {[%clk
01:02:04]} {[%emt 00:02:26]} 14. Bxc8 {[%clk 01:26:18]} {[%emt 00:04:10]} Raxc8
{[%clk 01:02:00]} {[%emt 00:00:34]} 15. Rhf1 {[%clk 01:15:56]} {[%emt
00:10:51]} Kg7 {[%clk 00:58:04]} {[%emt 00:04:27]} 16. Kb1 {[%clk 00:59:07]}
{[%emt 00:17:20]} Rfd8 {[%clk 00:55:33]} {[%emt 00:03:00]} 17. Qf2 {[%clk
00:47:22]} {[%emt 00:12:15]} Qc5 {[%clk 00:47:48]} {[%emt 00:08:15]} 18. Rd3
{[%clk 00:39:41]} {[%emt 00:08:11]} Rd7 {[%clk 00:41:15]} {[%emt 00:07:03]} 19.
Qxc5 {[%clk 00:33:26]} {[%emt 00:06:45]} Rxc5 {[%clk 00:41:11]} {[%emt
00:00:34]} 20. Rfd1 {[%clk 00:33:46]} {[%emt 00:00:09]} Rdc7 {[%clk 00:35:30]}
{[%emt 00:06:12]} 21. Bxf6+ {[%clk 00:29:37]} {[%emt 00:04:39]} Bxf6 {[%clk
00:35:27]} {[%emt 00:00:33]} 22. Rxd6 {[%clk 00:29:50]} {[%emt 00:00:16]} Nc4
{[%clk 00:35:53]} {[%emt 00:00:05]} 23. Rxf6 {[%clk 00:22:18]} {[%emt
00:08:01]} Kxf6 {[%clk 00:36:05]} {[%emt 00:00:18]} 24. Nd5+ {[%clk 00:22:30]}
{[%emt 00:00:18]} Rxd5 {[%clk 00:34:51]} {[%emt 00:01:44]} 25. Rxd5 {[%clk
00:22:52]} {[%emt 00:00:08]} exf4 {[%clk 00:34:46]} {[%emt 00:00:35]} 26. gxf4
{[%clk 00:23:13]} {[%emt 00:00:09]} Re7 {[%clk 00:30:59]} {[%emt 00:04:17]} 27.
b3 {[%clk 00:21:19]} {[%emt 00:02:24]} Na3+ {[%clk 00:28:27]} {[%emt 00:03:02]}
28. Kb2 {[%clk 00:21:26]} {[%emt 00:00:23]} Nb5 {[%clk 00:28:55]} {[%emt
00:00:02]} 29. c4 {[%clk 00:20:08]} {[%emt 00:01:48]} Nc7 {[%clk 00:29:08]}
{[%emt 00:00:18]} 30. Rd6+ {[%clk 00:17:10]} {[%emt 00:03:28]} Kg7 {[%clk
00:28:01]} {[%emt 00:01:37]} 31. Nd2 {[%clk 00:17:37]} {[%emt 00:00:03]} f5
{[%clk 00:26:52]} {[%emt 00:01:39]} 32. exf5 {[%clk 00:17:14]} {[%emt
00:00:53]} gxf5 {[%clk 00:27:10]} {[%emt 00:00:11]} 33. Nf3 {[%clk 00:14:37]}
{[%emt 00:03:07]} Ne6 {[%clk 00:26:05]} {[%emt 00:01:35]} 34. Nh4 {[%clk
00:14:09]} {[%emt 00:00:58]} Kf6 {[%clk 00:26:26]} {[%emt 00:00:09]} 35. Kc3
{[%clk 00:11:02]} {[%emt 00:03:37]} Rf7 {[%clk 00:25:08]} {[%emt 00:01:48]} 36.
Rb6 {[%clk 00:10:55]} {[%emt 00:00:38]} Rg7 {[%clk 00:24:46]} {[%emt 00:00:52]}
37. Nf3 {[%clk 00:10:22]} {[%emt 00:01:02]} Ke7 {[%clk 00:24:07]} {[%emt
00:01:08]} 38. Rxb7+ {[%clk 00:10:44]} {[%emt 00:00:10]} Kd6 {[%clk 00:24:31]}
{[%emt 00:00:05]} 39. Rxg7 {[%clk 00:09:41]} {[%emt 00:01:34]} Nxg7 {[%clk
00:25:00]} {[%emt 00:00:01]} 40. Nd4 {[%clk 00:10:05]} {[%emt 00:00:06]} 1-0

[Event "NJSK 2018 Jeugd B"]
[Site "Assen, Netherlands"]
[Date "2018.05.02"]
[Round "4.4"]
[White "Hilwerda, Jonas"]
[Black "Achuthan, Dylan"]
[Result "1-0"]
[TimeControl "40/90m+30m+30sec/move"]
[WhiteElo "2108"]
[BlackElo "1673"]

1. e4 {[%clk 01:30:59]} c5 {[%clk 01:30:55]} {[%emt 00:00:06]} 2. Nf3 {[%clk
01:31:27]} {[%emt 00:00:01]} Nc6 {[%clk 01:31:16]} {[%emt 00:00:08]} 3. d4
{[%clk 01:31:53]} {[%emt 00:00:05]} cxd4 {[%clk 01:31:41]} {[%emt 00:00:05]} 4.
Nxd4 {[%clk 01:32:21]} {[%emt 00:00:01]} e5 {[%clk 01:32:01]} {[%emt 00:00:10]}
5. Nb5 {[%clk 01:32:40]} {[%emt 00:00:11]} d6 {[%clk 01:32:26]} {[%emt
00:00:06]} 6. N1c3 {[%clk 01:33:02]} {[%emt 00:00:08]} a6 {[%clk 01:32:50]}
{[%emt 00:00:06]} 7. Na3 {[%clk 01:33:28]} {[%emt 00:00:04]} b5 {[%clk
01:33:16]} {[%emt 00:00:04]} 8. Nd5 {[%clk 01:33:55]} {[%emt 00:00:03]} Nge7
{[%clk 01:33:42]} {[%emt 00:00:04]} 9. Bd3 {[%clk 01:34:11]} {[%emt 00:00:14]}
Nxd5 {[%clk 01:33:33]} {[%emt 00:00:39]} 10. exd5 {[%clk 01:34:27]} {[%emt
00:00:14]} Ne7 {[%clk 01:33:55]} {[%emt 00:00:08]} 11. c4 {[%clk 01:34:18]}
{[%emt 00:00:40]} g6 {[%clk 01:33:04]} {[%emt 00:01:20]} 12. cxb5 {[%clk
01:34:22]} {[%emt 00:00:26]} Bg7 {[%clk 01:33:06]} {[%emt 00:00:29]} 13. O-O
{[%clk 01:34:23]} {[%emt 00:00:29]} O-O {[%clk 01:32:54]} {[%emt 00:00:41]} 14.
bxa6 {[%clk 01:34:22]} {[%emt 00:00:31]} f5 {[%clk 01:31:34]} {[%emt 00:01:51]}
15. Qe2 {[%clk 01:29:34]} {[%emt 00:05:17]} f4 {[%clk 01:27:34]} {[%emt
00:04:31]} 16. f3 {[%clk 01:24:55]} {[%emt 00:05:08]} Nf5 {[%clk 01:25:35]}
{[%emt 00:02:29]} 17. Bxf5 {[%clk 01:13:11]} {[%emt 00:12:14]} Rxf5 {[%clk
01:23:29]} {[%emt 00:02:36]} 18. Qf2 {[%clk 01:09:11]} {[%emt 00:04:30]} Bxa6
{[%clk 01:20:30]} {[%emt 00:03:30]} 19. Rd1 {[%clk 01:08:08]} {[%emt 00:01:32]}
h5 {[%clk 01:09:39]} {[%emt 00:11:22]} 20. Nb1 {[%clk 00:53:28]} {[%emt
00:15:09]} h4 {[%clk 00:52:57]} {[%emt 00:17:13]} 21. h3 {[%clk 00:45:10]}
{[%emt 00:08:47]} Bf6 {[%clk 00:47:46]} {[%emt 00:05:42]} 22. Nc3 {[%clk
00:44:11]} {[%emt 00:01:27]} Qd7 {[%clk 00:44:35]} {[%emt 00:03:41]} 23. Ne4
{[%clk 00:41:08]} {[%emt 00:03:34]} Bd8 {[%clk 00:44:24]} {[%emt 00:00:41]} 24.
Kh2 {[%clk 00:36:14]} {[%emt 00:05:23]} Qe7 {[%clk 00:40:25]} {[%emt 00:04:31]}
25. b3 {[%clk 00:28:23]} {[%emt 00:08:21]} Rb8 {[%clk 00:39:41]} {[%emt
00:01:14]} 26. Ba3 {[%clk 00:27:14]} {[%emt 00:01:38]} Bc7 {[%clk 00:34:43]}
{[%emt 00:05:28]} 27. Qa7 {[%clk 00:21:37]} {[%emt 00:06:06]} Bb5 {[%clk
00:32:59]} {[%emt 00:02:15]} 28. Nxd6 {[%clk 00:20:39]} {[%emt 00:01:28]} Bxd6
{[%clk 00:31:50]} {[%emt 00:01:39]} 29. Qxb8+ {[%clk 00:20:59]} {[%emt
00:00:10]} Bxb8 {[%clk 00:32:13]} {[%emt 00:00:07]} 30. Bxe7 {[%clk 00:21:23]}
{[%emt 00:00:06]} Ba7 {[%clk 00:32:13]} {[%emt 00:00:30]} 31. d6 {[%clk
00:20:31]} {[%emt 00:01:21]} Bd7 {[%clk 00:32:36]} {[%emt 00:00:08]} 32. Rac1
{[%clk 00:20:41]} {[%emt 00:00:20]} Bf2 {[%clk 00:32:47]} {[%emt 00:00:20]} 33.
Rc7 {[%clk 00:20:57]} {[%emt 00:00:14]} Bg3 {[%clk 00:33:09]} {[%emt 00:00:08]}
34. Kg1 {[%clk 00:21:17]} {[%emt 00:00:08]} Be8 {[%clk 00:33:32]} {[%emt
00:00:08]} 35. Rc8 {[%clk 00:21:20]} {[%emt 00:00:27]} Kf7 {[%clk 00:33:55]}
{[%emt 00:00:08]} 36. Rxe8 {[%clk 00:21:37]} {[%emt 00:00:12]} Kxe8 {[%clk
00:34:13]} {[%emt 00:00:12]} 37. d7+ {[%clk 00:22:03]} {[%emt 00:00:05]} Kxe7
{[%clk 00:34:37]} {[%emt 00:00:05]} 38. d8=Q+ {[%clk 00:22:25]} {[%emt
00:00:08]} Kf7 {[%clk 00:34:48]} {[%emt 00:00:19]} 39. Rd7+ {[%clk 00:22:50]}
{[%emt 00:00:05]} Ke6 {[%clk 00:35:11]} {[%emt 00:00:07]} 40. Qe7# {[%clk
00:23:09]} {[%emt 00:00:11]} 1-0